bitfinex-derivatives/quotes_ETHF0:USTF0_20250629
["timestamp","ask_amount","ask_price","bid_price","bid_amount"]
[1751186525939,7.32861,2445.3,2445.2,0.81765]
[1751186526137,6.511,2445.3,2445.2,0.81765]
[1751186526434,1.549,2445.4,2445.3,0.81761]
[1751186526739,8.06,2445.4,2445.3,0.81761]
[1751186527644,7.2424,2445.4,2445.3,0.81761]
[1751186527838,7.2424,2445.4,2445.2,0.81763]
[1751186528044,2.94776917,2445.3,2445.2,0.81765]
[1751186530141,7.2424,2445.4,2445.3,0.81761]
[1751186530347,53.27256917,2445.5,2445.4,0.81758]
[1751186530542,59.78356917,2445.5,2445.4,0.81758]
[1751186531149,56.57576917,2445.5,2445.4,0.81758]
[1751186531348,53.628,2445.5,2445.4,0.81758]
[1751186531651,56.57576917,2445.5,2445.4,0.81758]
[1751186533839,53.628,2445.5,2445.4,0.81758]
[1751186535539,53.628,2445.5,2445.4,1.55008]
[1751186538250,6.511,2445.5,2445.4,1.55008]
[1751186540652,31.501,2445.6,2445.5,0.81755]
[1751186540853,6.51,2445.6,2445.5,1.51685]
[1751186541053,31.5,2445.6,2445.5,1.51685]
[1751186541354,35.52325,2445.8,2445.7,0.81748]
[1751186542655,34.7038,2445.8,2445.7,0.81748]
[1751186543245,34.7038,2445.8,2445.5,0.6993]
[1751186543449,2.1478,2445.7,2445.6,0.81751]
[1751186543655,5.09556917,2445.7,2445.6,0.81751]
[1751186544149,4.27806917,2445.7,2445.4,0.7325]
[1751186544355,0.7039,2445.6,2445.5,0.81751]
[1751186544557,25.6839,2445.6,2445.5,0.81751]
[1751186546361,26.50141,2445.6,2445.5,0.81751]
[1751186546553,27.0759,2445.6,2445.5,0.81751]
[1751186547459,27.89341,2445.6,2445.5,0.81751]
[1751186547859,3.76525917,2445.7,2445.6,0.81749]
[1751186548057,35.94725917,2445.7,2445.6,0.81749]
[1751186548559,32.182,2445.7,2445.6,0.81749]
[1751186548765,35.12976917,2445.7,2445.6,0.81749]
[1751186548963,35.94724917,2445.7,2445.5,0.81752]
[1751186549468,0.81756,2445.5,2445.3,0.8176]
[1751186549762,1.52258,2445.4,2445.3,0.8176]
[1751186550067,0.81765,2445.2,2445.1,2.0358519]
[1751186550365,0.81768,2445.1,2445.0,1.2181819]
[1751186550562,1.52268,2445.1,2445.0,2.0358919]
[1751186550765,32.92368,2445.1,2445.0,1.2181819]
[1751186550968,0.81771,2445.0,2444.9,1.2181819]
[1751186551152,5.11497917,2445.0,2444.9,1.2181819]
[1751186551664,0.81775,2444.9,2444.8,5.2437619]
[1751186551862,32.21875,2444.9,2444.8,3.2078]
[1751186552058,33.56825,2444.9,2444.8,4.02558]
[1751186553458,32.7505,2444.9,2444.8,3.2078]
[1751186553658,33.56825,2444.9,2444.8,3.2078]
[1751186557562,40.9583,2444.9,2444.4,1.2181819]
[1751186557763,0.81791,2444.4,2444.3,1.2181819]
[1751186557971,32.26491,2444.4,2444.3,1.2181819]
[1751186558171,34.93501,2444.4,2444.3,1.2181819]
[1751186558372,0.81795,2444.3,2444.1,4.0258]
[1751186558573,27.94576917,2444.2,2444.1,4.0258]
[1751186558762,27.94576917,2444.2,2444.1,3.2078]
[1751186558763,28.76374917,2444.2,2444.1,3.2078]
[1751186559065,2.94776917,2444.2,2444.1,4.02581]
[1751186559267,34.39276917,2444.2,2444.1,4.02581]
[1751186559864,34.39276917,2444.2,2444.1,3.2078]
[1751186560070,35.21074917,2444.2,2444.1,3.2078]
[1751186560665,31.445,2444.2,2444.1,4.02581]
[1751186560867,31.441,2444.2,2444.1,3.2078]
[1751186561062,3.76566917,2444.5,2444.2,0.81795]
[1751186561267,32.25791,2444.4,2444.2,2.15985]
[1751186561567,32.25791,2444.4,2444.3,1.53925]
[1751186561975,31.44,2444.4,2444.3,1.53925]
[1751186562466,32.25791,2444.4,2444.3,1.53925]
[1751186563473,32.25191,2444.4,2444.3,1.53925]
[1751186564173,32.25191,2444.4,2444.3,0.7213]
[1751186566373,32.25191,2444.4,2444.3,1.53925]
[1751186566874,31.434,2444.4,2444.3,1.53925]
[1751186567276,32.25191,2444.4,2444.3,1.53925]
[1751186567774,3.8782,2444.6,2444.3,0.7213]
[1751186567971,0.81783,2444.7,2444.4,3.2078]
[1751186568170,31.421,2444.6,2444.5,1.53198]
[1751186568774,6.451,2444.6,2444.5,1.53198]
[1751186568974,31.419,2444.6,2444.5,1.53198]
[1751186570076,0.81781,2444.7,2444.6,0.81785]
[1751186570269,31.413,2444.7,2444.5,0.7141]
[1751186570469,31.413,2444.7,2444.6,0.6848]
[1751186571072,31.413,2444.7,2444.6,1.50262]
[1751186572571,34.36076917,2444.7,2444.6,1.50262]
[1751186574879,35.17857917,2444.7,2444.6,1.50265]
[1751186575478,34.36076917,2444.7,2444.6,1.50265]
[1751186575875,35.17857917,2444.7,2444.6,1.50265]
[1751186576286,34.36076917,2444.7,2444.6,1.50265]
[1751186576774,35.17857917,2444.7,2444.6,1.50265]
[1751186577378,34.36076917,2444.7,2444.6,1.50265]
[1751186577579,35.17857917,2444.7,2444.6,1.50265]
[1751186577972,34.36076917,2444.7,2444.6,1.50265]
[1751186578576,35.17857917,2444.7,2444.6,0.6848]
[1751186578774,0.81785,2444.6,2444.5,1.53196]
[1751186579082,0.81785,2444.6,2444.3,0.81794]
[1751186579083,0.81792,2444.4,2444.3,0.81794]
[1751186579378,25.75292,2444.4,2444.3,0.81794]
[1751186580481,24.935,2444.4,2444.3,0.81794]
[1751186582381,25.75291,2444.4,2444.3,0.81794]
[1751186583683,24.935,2444.4,2444.3,0.81794]
[1751186583986,25.75291,2444.4,2444.3,0.81794]
[1751186584282,24.935,2444.4,2444.3,0.81794]
[1751186584480,5.10556917,2444.5,2444.4,0.81791]
[1751186584682,6.43,2444.5,2444.4,0.81791]
[1751186584889,31.345,2444.5,2444.4,1.50781]
[1751186585386,6.43,2444.5,2444.4,4.1864919]
[1751186587687,6.43,2444.5,2444.4,2.7259919]
[1751186592197,10.19564917,2444.5,2444.4,2.0360919]
[1751186592396,11.41256917,2444.5,2444.4,0.81791]
[1751186592707,12.23044917,2444.5,2444.4,0.81791]
[1751186593899,11.41256917,2444.5,2444.4,0.81791]
[1751186595296,4.98256917,2444.5,2444.4,2.0360919]
[1751186595497,33.3768,2444.5,2444.4,2.0360919]
[1751186595696,31.342,2444.5,2444.4,2.0360919]
[1751186597391,32.15988,2444.5,2444.4,2.0360919]
[1751186598496,32.15988,2444.5,2444.4,1.2181819]
[1751186598692,33.60638,2444.5,2444.4,1.2181819]
[1751186599600,33.60638,2444.5,2444.4,2.0360919]
[1751186603305,33.60638,2444.5,2444.4,1.2181819]
[1751186603898,33.60638,2444.5,2444.4,2.0360919]
[1751186604099,34.28876917,2444.5,2444.4,2.0360919]
[1751186604599,35.10664917,2444.5,2444.4,2.0360919]
[1751186608914,35.10664917,2444.5,2444.4,1.2181819]
[1751186610212,35.10664917,2444.5,2444.4,2.0360919]
[1751186610415,35.10664917,2444.5,2444.4,1.2181819]
[1751186611503,35.10664917,2444.5,2444.4,2.0360919]
[1751186615515,3.76564917,2444.5,2444.4,2.0360919]
[1751186615711,35.09264917,2444.5,2444.4,2.0360919]
[1751186623425,35.09264917,2444.5,2444.4,1.2181819]
[1751186624616,36.53004917,2444.5,2444.4,1.2181819]
[1751186626627,33.58228,2444.5,2444.4,1.2181819]
[1751186626816,36.53004917,2444.5,2444.4,1.2181819]
[1751186630825,35.09264917,2444.5,2444.4,2.0360919]
[1751186633328,35.09264917,2444.5,2444.4,1.2181819]
[1751186637329,35.09264917,2444.5,2444.4,2.0360919]
[1751186640936,35.07964917,2444.5,2444.4,2.0360919]
[1751186641240,2.94776917,2444.7,2444.4,1.2181819]
[1751186641441,3.76559917,2444.7,2444.6,0.81785]
[1751186641632,35.07959917,2444.7,2444.6,0.81785]
[1751186642836,35.07859917,2444.7,2444.6,0.81785]
[1751186644442,2.94776917,2444.7,2444.6,0.81785]
[1751186644837,34.25976917,2444.7,2444.6,0.81785]
[1751186645033,9.36076917,2444.7,2444.6,0.81785]
[1751186645249,34.25976917,2444.7,2444.6,0.81785]
[1751186645439,35.07757917,2444.7,2444.6,0.81785]
[1751186645935,10.17857917,2444.7,2444.6,0.81785]
[1751186646141,35.07757917,2444.7,2444.6,0.81785]
[1751186647034,9.36076917,2444.7,2444.6,0.81785]
[1751186647239,34.25876917,2444.7,2444.6,0.81785]
[1751186647641,6.46581095,2444.9,2444.5,1.22269778]
[1751186647838,6.413,2444.7,2444.6,0.81785]
[1751186650346,2.94776917,2444.8,2444.7,0.81781]
[1751186650544,9.36076917,2444.8,2444.7,0.81781]
[1751186650743,2.06148008,2444.8,2444.7,0.81781]
[1751186650943,34.18826008,2444.8,2444.7,0.81781]
[1751186652147,33.37048008,2444.8,2444.7,0.81781]
[1751186653349,34.18826008,2444.8,2444.7,0.81781]
[1751186654148,33.37048008,2444.8,2444.7,0.81781]
[1751186655249,34.18826008,2444.8,2444.7,0.81781]
[1751186656052,33.37048008,2444.8,2444.7,0.81781]
[1751186656347,34.18826008,2444.8,2444.7,0.81781]
[1751186657450,2.87926008,2444.8,2444.7,0.81781]
[1751186657651,33.36748008,2444.8,2444.7,0.81781]
[1751186658345,34.18526008,2444.8,2444.7,0.81781]
[1751186660544,33.36748008,2444.8,2444.7,0.81781]
[1751186660744,34.18526008,2444.8,2444.7,0.81781]
[1751186660945,31.306,2444.8,2444.7,0.81781]
[1751186661152,33.36748008,2444.8,2444.7,0.81781]
[1751186662650,8.42535095,2445.0,2444.9,0.81775]
[1751186662651,9.6208,2445.0,2444.9,0.81775]
[1751186662951,3.2078,2445.0,2444.9,0.81775]
[1751186663351,3.2078,2445.0,2444.9,2.70644778]
[1751186663749,2.06148008,2445.1,2445.0,0.81771]
[1751186663951,26.95148008,2445.1,2445.0,0.81771]
[1751186664152,33.36348008,2445.1,2445.0,0.81771]
[1751186664552,31.302,2445.1,2445.0,0.81771]
[1751186665955,6.413,2445.1,2445.0,0.81771]
[1751186666553,31.301,2445.1,2445.0,0.81771]
[1751186668854,3.64978425,2445.2,2445.1,0.81768]
[1751186669056,34.94778425,2445.2,2445.1,0.81768]
[1751186669955,4.7566,2445.4,2445.3,0.81761]
[1751186670149,9.6198,2445.4,2445.3,0.81761]
[1751186670453,31.296,2445.4,2445.3,0.81761]
[1751186670654,6.412,2445.5,2445.2,4.98819425]
[1751186670859,6.412,2445.5,2445.4,0.81758]
[1751186671052,7.3408116,2446.4,2446.3,0.81728]
[1751186671247,4.08504909,2447.2,2446.6,0.81718]
[1751186671546,6.15188425,2448.0,2447.7,0.81681]
[1751186671744,3.02754774,2447.8,2447.5,3.2078]
[1751186671953,3.02754774,2447.8,2447.6,0.81684]
[1751186671954,4.31418425,2447.7,2447.6,0.81684]
[1751186672255,0.08346349,2447.8,2447.7,0.81681]
[1751186672657,0.08346349,2447.8,2447.5,40.8]
[1751186672856,2.94408425,2447.6,2447.3,0.81693]
[1751186673049,1.3926,2447.5,2447.4,0.81691]
[1751186673250,3.2078,2447.7,2447.2,3.2078]
[1751186673454,2.94408425,2447.6,2447.5,0.81686]
[1751186673654,2.94408425,2447.6,2447.4,0.81689]
[1751186673655,4.33668425,2447.6,2447.4,0.81689]
[1751186673852,4.33668425,2447.6,2447.5,0.81688]
[1751186674453,4.33668425,2447.6,2447.3,41.61692]
[1751186674655,0.08346349,2447.8,2447.5,6.15188425]
[1751186674848,0.08346349,2447.8,2447.6,0.81683]
[1751186675555,0.08346349,2447.8,2447.5,9.6098]
[1751186675755,0.81684,2447.6,2447.5,3.2078]
[1751186675950,0.81701,2447.1,2447.0,3.2078]
[1751186676248,3.76105425,2447.3,2447.0,3.2078]
[1751186676455,0.81698,2447.2,2447.1,40.8]
[1751186676654,2.18008,2447.2,2447.1,40.8]
[1751186677551,5.38788,2447.2,2447.1,40.8]
[1751186677752,2.18008,2447.2,2447.1,40.8]
[1751186677951,0.81706,2447.0,2446.7,0.81713]
[1751186678151,3.76114425,2447.0,2446.7,0.81713]
[1751186678350,3.76114425,2447.0,2446.8,0.81711]
[1751186678550,0.81709,2446.9,2446.6,4.02496]
[1751186678750,2.24199,2446.9,2446.6,4.02496]
[1751186678950,2.24199,2446.9,2446.6,10.42496]
[1751186679153,1.4249,2446.9,2446.6,9.6078]
[1751186679354,1.4249,2446.9,2446.8,0.81711]
[1751186679955,1.4249,2446.9,2446.7,7.21712]
[1751186680156,1.4249,2446.9,2446.8,0.81711]
[1751186680356,1.4249,2446.9,2446.6,3.2078]
[1751186680556,2.24198,2446.9,2446.7,7.21712]
[1751186680756,0.81706,2447.0,2446.8,41.61711]
[1751186681254,0.81706,2447.0,2446.8,41.6171]
[1751186681454,0.81704,2447.0,2446.9,0.81708]
[1751186681853,0.81703,2447.1,2446.9,0.81708]
[1751186682159,0.81703,2447.1,2446.9,0.81706]
[1751186682460,0.81704,2447.0,2446.9,0.81706]
[1751186682653,0.81704,2447.0,2446.8,41.61709]
[1751186682855,0.81708,2446.9,2446.8,40.8]
[1751186683059,0.81706,2447.0,2446.8,0.81711]
[1751186683251,0.81706,2447.0,2446.9,0.81708]
[1751186683666,2.22383,2447.1,2446.9,0.81708]
[1751186684058,2.22383,2447.1,2447.0,0.81704]
[1751186684660,2.22383,2447.1,2446.9,0.81706]
[1751186684862,2.22383,2447.1,2447.0,0.81704]
[1751186685057,1.4068,2447.1,2447.0,0.81704]
[1751186685958,2.22381,2447.1,2446.7,47.199]
[1751186686254,2.22381,2447.1,2447.0,0.81704]
[1751186687264,0.81705,2447.0,2446.9,0.81706]
[1751186687465,2.22382,2447.1,2447.0,0.81704]
[1751186687867,1.4068,2447.1,2447.0,0.81704]
[1751186689867,0.81706,2447.0,2446.9,0.81705]
[1751186690270,0.81705,2447.0,2446.9,0.81704]
[1751186692274,2.22384,2447.1,2447.0,0.81704]
[1751186692671,0.7087,2447.5,2447.0,6.15188425]
[1751186692871,0.81701,2447.1,2447.0,3.2078]
[1751186693076,0.817,2447.2,2447.0,4.02484]
[1751186693275,5.18198425,2447.2,2447.0,4.02484]
[1751186693476,0.81701,2447.1,2447.0,3.2078]
[1751186693676,2.25001,2447.1,2447.0,3.2078]
[1751186694278,1.433,2447.1,2447.0,4.02484]
[1751186694682,2.25001,2447.1,2447.0,4.02484]
[1751186694881,1.433,2447.1,2447.0,4.02484]
[1751186698278,2.25001,2447.1,2447.0,3.2078]
[1751186698478,5.19409425,2447.1,2447.0,4.02484]
[1751186699182,1.433,2447.1,2447.0,4.02484]
[1751186699579,2.25001,2447.1,2447.0,4.02484]
[1751186699778,1.433,2447.1,2447.0,4.02484]
[1751186700575,0.7087,2447.5,2447.0,6.15188425]
[1751186700775,0.7087,2447.5,2447.0,9.40807835]
[1751186700983,1.378,2447.4,2447.3,0.81694]
[1751186701883,0.7087,2447.5,2447.4,0.81691]
[1751186705674,2.1152,2447.5,2447.4,0.81691]
[1751186705873,2.93208,2447.5,2447.4,0.81691]
[1751186706279,2.1152,2447.5,2447.4,0.81691]
[1751186706985,2.93208,2447.5,2447.4,0.81691]
[1751186707187,2.1152,2447.5,2447.4,0.81691]
[1751186707891,2.93208,2447.5,2447.4,0.81691]
[1751186708192,2.1152,2447.5,2447.4,2.0305041]
[1751186708385,2.93208,2447.5,2447.4,2.0305041]
[1751186709685,2.1152,2447.5,2447.4,0.81691]
[1751186712284,2.1152,2447.5,2447.4,2.03414212]
[1751186712989,2.93208,2447.5,2447.4,1.21723212]
[1751186713196,2.1152,2447.5,2447.4,2.03414212]
[1751186713489,2.93208,2447.5,2447.4,2.03414212]
[1751186713883,2.1152,2447.5,2447.4,2.03414212]
[1751186714688,5.87616425,2447.5,2447.4,2.03414212]
[1751186715091,5.05928425,2447.5,2447.4,2.03414212]
[1751186716989,5.87616425,2447.5,2447.4,2.03414212]
[1751186717191,5.05928425,2447.5,2447.4,2.03414212]
[1751186717999,5.87616425,2447.5,2447.4,2.03414212]
[1751186718190,5.05928425,2447.5,2447.4,2.03414212]
[1751186718494,5.87616425,2447.5,2447.4,2.03414212]
[1751186718696,2.1152,2447.5,2447.4,2.03414212]
[1751186722593,10.96159425,2447.7,2447.6,0.81684]
[1751186722594,6.51,2447.7,2447.6,0.81684]
[1751186722989,7.8764,2447.7,2447.6,0.81684]
[1751186723298,11.63729425,2447.7,2447.6,0.81684]
[1751186723498,0.81685,2447.6,2447.5,0.81685]
[1751186723699,2.18325,2447.6,2447.5,0.81685]
[1751186723996,1.3664,2447.6,2447.5,0.81685]
[1751186725789,9.53754774,2447.8,2447.6,0.81684]
[1751186725994,10.93194774,2447.8,2447.6,0.81684]
[1751186726197,1.3944,2447.7,2447.6,0.81684]
[1751186727701,2.21121,2447.7,2447.6,0.81684]
[1751186728001,1.3944,2447.7,2447.6,0.81684]
[1751186728797,0.08346349,2447.8,2447.7,0.81681]
[1751186729493,1.51046349,2447.8,2447.7,0.81681]
[1751186730002,1.51046349,2447.8,2447.6,4.42503212]
[1751186730194,3.66988425,2447.7,2447.6,4.02463]
[1751186730789,3.66988425,2447.7,2447.6,5.65194939]
[1751186731596,5.12508425,2447.7,2447.6,4.83511939]
[1751186731800,5.94189425,2447.7,2447.6,1.62731939]
[1751186732004,5.94189425,2447.7,2447.6,1.21719687]
[1751186732299,0.81688,2447.5,2447.4,2.03408687]
[1751186732602,3.76096425,2447.5,2447.4,1.21719687]
[1751186732803,3.76096425,2447.5,2447.4,2.03410687]
[1751186732998,4.47816425,2447.5,2447.4,1.21719687]
[1751186733500,5.80466425,2447.5,2447.4,1.21719687]
[1751186734105,4.98778425,2447.5,2447.4,0.81691]
[1751186734303,5.80466425,2447.5,2447.4,2.03410687]
[1751186735103,5.80466425,2447.5,2447.4,0.81691]
[1751186735304,0.08346349,2447.8,2447.3,4.42499687]
[1751186735506,1.3225,2447.7,2447.6,0.81684]
[1751186737902,0.08346349,2447.8,2447.7,0.81681]
[1751186738411,0.08346349,2447.8,2447.7,4.02461]
[1751186741602,0.08346349,2447.8,2447.7,5.65192939]
[1751186742806,0.08346349,2447.8,2447.7,10.05461364]
[1751186743009,0.08346349,2447.8,2447.7,5.65192939]
[1751186743210,0.08346349,2447.8,2447.7,46.45192939]
[1751186743906,0.08346349,2447.8,2447.7,44.82461]
[1751186744114,0.08346349,2447.8,2447.7,46.44678253]
[1751186747615,1.47616349,2447.8,2447.7,46.44678253]
[1751186749308,1.47616349,2447.8,2447.7,5.64678253]
[1751186751817,1.47616349,2447.8,2447.7,4.02461]
[1751186753218,5.23702774,2447.8,2447.7,2.03238561]
[1751186753411,0.81681,2447.7,2447.6,1.21557561]
[1751186753606,2.93851,2447.7,2447.5,2.03242561]
[1751186753913,4.45302425,2447.6,2447.5,0.81685]
[1751186754119,5.88552425,2447.6,2447.5,0.81685]
[1751186755228,12.34853425,2447.6,2447.5,0.81688]
[1751186755419,12.34853425,2447.6,2447.4,0.81689]
[1751186755625,4.33708425,2447.5,2447.3,4.42337561]
[1751186755827,4.33708425,2447.5,2447.4,0.81691]
[1751186758429,1.393,2447.5,2447.4,0.81691]
[1751186758826,0.08346349,2447.8,2447.4,2.94408425]
[1751186759021,0.08346349,2447.8,2447.7,0.81681]
[1751186759827,1.40836349,2447.8,2447.7,0.81681]
[1751186762525,2.22514349,2447.8,2447.7,0.81681]
[1751186762731,1.40836349,2447.8,2447.4,1.21557561]
[1751186763032,2.94408425,2447.6,2447.5,0.81687]
[1751186763224,10.24092425,2447.6,2447.5,0.81687]
[1751186763426,0.81688,2447.5,2447.4,1.21557561]
[1751186763621,0.81691,2447.4,2447.3,4.42337561]
[1751186763923,2.94408425,2447.4,2447.3,4.02474]
[1751186764126,3.76099425,2447.4,2447.3,3.2078]
[1751186764431,3.76099425,2447.4,2447.3,4.02474]
[1751186764627,2.94408425,2447.4,2447.3,4.02474]
[1751186765026,5.09469425,2447.4,2447.3,3.2078]
[1751186765730,4.27778425,2447.4,2447.2,0.81698]
[1751186765930,7.8147,2447.3,2447.2,0.81698]
[1751186766635,7.8147,2447.3,2447.1,0.817]
[1751186766836,2.0051,2447.2,2447.1,0.817]
[1751186767231,2.82208,2447.2,2447.1,0.817]
[1751186767826,0.81701,2447.1,2446.9,3.868]
[1751186768030,2.94408425,2447.0,2446.9,4.02485]
[1751186768232,3.76112425,2447.0,2446.9,3.2078]
[1751186768433,5.16792425,2447.0,2446.9,4.02488]
[1751186768830,5.16792425,2447.0,2446.9,3.2078]
[1751186769024,4.35088425,2447.0,2446.9,4.02488]
[1751186770724,5.16792425,2447.0,2446.9,4.02488]
[1751186770929,11.64894425,2447.0,2446.6,4.42337561]
[1751186771130,1.4321,2446.9,2446.8,0.81711]
[1751186772138,2.24918,2446.9,2446.8,0.81711]
[1751186773029,1.4321,2446.9,2446.8,0.81711]
[1751186773235,2.24918,2446.9,2446.8,0.81711]
[1751186773435,2.24918,2446.9,2446.7,0.6653]
[1751186773436,0.81711,2446.8,2446.7,0.81712]
[1751186773632,0.81714,2446.7,2446.6,5.24052561]
[1751186773838,5.78731425,2446.8,2446.6,4.42337561]
[1751186774039,1.3391,2446.7,2446.6,5.24055561]
[1751186774630,2.15624,2446.7,2446.6,4.42337561]
[1751186774834,2.15624,2446.7,2446.6,3.2078]
[1751186775040,8.63824,2446.7,2446.6,3.2078]
[1751186775738,0.81721,2446.5,2446.4,1.21557561]
[1751186776040,3.76129425,2446.5,2446.4,1.21557561]
[1751186776241,2.94408425,2446.5,2446.4,0.81724]
[1751186776440,4.30968425,2446.5,2446.4,2.03281561]
[1751186776740,5.12689425,2446.5,2446.4,2.03281561]
[1751186777142,5.12689425,2446.5,2446.4,0.81724]
[1751186777842,5.12689425,2446.5,2446.3,1.52466]
[1751186778242,5.12689425,2446.5,2446.4,0.81724]
[1751186778744,0.81724,2446.4,2446.3,1.52466]
[1751186779047,1.51259,2446.6,2446.5,0.81721]
[1751186779343,0.6954,2446.6,2446.5,0.81721]
[1751186779541,2.0923,2446.6,2446.5,0.81721]
[1751186779742,2.90948,2446.6,2446.5,0.81721]
[1751186780246,0.81721,2446.5,2446.4,0.81722]
[1751186780947,2.0923,2446.6,2446.5,0.81721]
[1751186781339,0.81717,2446.7,2446.6,0.81718]
[1751186781535,6.482,2446.7,2446.6,0.81718]
[1751186781840,0.81719,2446.6,2446.5,0.8172]
[1751186782040,2.21409,2446.6,2446.5,0.8172]
[1751186782542,1.3969,2446.6,2446.5,0.8172]
[1751186782841,2.21408,2446.6,2446.5,0.8172]
[1751186783140,2.2141,2446.6,2446.5,0.81721]
[1751186783443,2.2141,2446.6,2446.3,1.4249]
[1751186783742,0.81721,2446.5,2446.3,2.24215]
[1751186783938,2.24551,2446.5,2446.4,0.81724]
[1751186784137,2.24551,2446.5,2446.3,2.24215]
[1751186784332,2.24551,2446.5,2446.4,0.81724]
[1751186784644,0.81724,2446.4,2446.3,2.24216]
[1751186784942,2.24553,2446.5,2446.4,0.81724]
[1751186785144,0.81724,2446.4,2446.3,1.52466]
[1751186785343,2.1657,2446.4,2446.3,1.52466]
[1751186785540,2.98294,2446.4,2446.3,1.52466]
[1751186786345,2.1657,2446.4,2446.3,1.52466]
[1751186786547,2.98294,2446.4,2446.3,0.7074]
[1751186787046,2.98296,2446.4,2446.3,0.81728]
[1751186787239,2.1657,2446.4,2446.3,0.81728]
[1751186787440,2.1657,2446.4,2446.2,4.7363]
[1751186787640,2.98296,2446.4,2446.2,4.7363]
[1751186787844,1.4399,2446.3,2446.2,4.7363]
[1751186788140,2.25718,2446.3,2446.2,3.919]
[1751186788341,1.4399,2446.3,2446.2,4.73631]
[1751186788640,7.2088,2446.4,2446.3,0.81728]
[1751186789040,8.02604,2446.4,2446.3,0.81728]
[1751186789540,7.2088,2446.4,2446.3,0.81728]
[1751186790647,8.02604,2446.4,2446.3,0.81728]
[1751186791149,1.54304,2446.4,2446.3,0.81728]
[1751186791351,7.30024,2446.4,2446.3,0.81728]
[1751186792550,0.81728,2446.3,2446.2,4.73629]
[1751186792744,0.81727,2446.4,2446.3,0.81727]
[1751186792943,7.27227,2446.4,2446.3,0.81727]
[1751186793950,6.455,2446.4,2446.3,0.81727]
[1751186794443,2.18719,2446.6,2446.2,5.96227]
[1751186794644,8.64219,2446.6,2446.5,0.81721]
[1751186796456,1.53167,2446.7,2446.6,0.81718]
[1751186796646,7.1695,2446.7,2446.6,0.81718]
[1751186796846,7.98664,2446.7,2446.6,0.81718]
[1751186797552,7.98664,2446.7,2446.5,0.81719]
[1751186797553,0.81718,2446.6,2446.5,0.81719]
[1751186798352,4.02498,2446.6,2446.5,0.81719]
[1751186798851,3.2078,2446.6,2446.5,0.81719]
[1751186800648,4.02498,2446.6,2446.5,0.81719]
[1751186801051,0.81718,2446.6,2446.5,0.81719]
[1751186801753,7.27217,2446.7,2446.6,0.81718]
[1751186802556,6.455,2446.7,2446.6,0.81718]
[1751186803660,7.27214,2446.7,2446.6,0.81718]
[1751186805056,8.59524,2446.7,2446.6,0.81718]
[1751186805653,7.7781,2446.7,2446.6,0.81718]
[1751186806056,8.59524,2446.7,2446.6,0.81718]
[1751186806362,8.59527,2446.7,2446.6,0.81718]
[1751186806870,0.81721,2446.5,2446.4,1.21557561]
[1751186807065,3.76129425,2446.5,2446.4,1.21557561]
[1751186807361,3.76129425,2446.5,2446.4,0.81724]
[1751186807666,4.28858425,2446.5,2446.4,0.81724]
[1751186808059,5.10579425,2446.5,2446.4,0.81724]
[1751186808463,4.28858425,2446.5,2446.4,0.81724]
[1751186808865,5.10579425,2446.5,2446.4,0.81724]
[1751186809755,2.16171,2446.5,2446.4,0.81724]
[1751186810060,1.3445,2446.5,2446.4,0.81724]
[1751186810861,2.16171,2446.5,2446.4,0.81724]
[1751186812871,2.88071,2446.5,2446.4,0.81724]
[1751186813267,2.88071,2446.5,2446.3,2.03760528]
[1751186813464,2.19294,2446.4,2446.3,2.03760528]
[1751186813665,2.19294,2446.4,2446.3,1.22035528]
[1751186813865,2.19294,2446.4,2446.3,2.03763528]
[1751186814172,11.59202425,2446.4,2446.3,1.22035528]
[1751186814769,8.64794,2446.4,2446.3,1.22035528]
[1751186814969,11.59202425,2446.4,2446.3,1.22035528]
[1751186820677,0.81731,2446.2,2446.1,2.03767528]
[1751186824976,1.49481,2446.2,2446.1,2.03767528]
[1751186825776,0.6775,2446.2,2446.1,2.03767528]
[1751186827379,1.49481,2446.2,2446.1,2.03767528]
[1751186827583,1.49481,2446.2,2446.1,1.22035528]
[1751186827969,4.43889425,2446.2,2446.1,1.22035528]
[1751186828688,0.81734,2446.1,2446.0,4.42815528]
[1751186828877,2.22304,2446.1,2446.0,4.42815528]
[1751186829571,8.65104,2446.1,2446.0,4.42815528]
[1751186830478,8.65104,2446.1,2446.0,1e-08]
[1751186830479,33.56704,2446.1,2446.0,1e-08]
[1751186830681,0.81744,2445.8,2445.7,3.2078]
[1751186830882,7.24544,2445.8,2445.7,3.2078]
[1751186831276,9.28884,2445.8,2445.7,3.2078]
[1751186831678,0.81748,2445.7,2445.6,1.62217253]
[1751186831879,5.09066425,2445.7,2445.6,1.62217253]
[1751186832079,5.09066425,2445.7,2445.5,1.62217253]
[1751186832080,0.81751,2445.6,2445.5,1.62217253]
[1751186832280,30.00769425,2445.6,2445.5,1.62217253]
[1751186833486,0.81755,2445.5,2445.4,1.62217253]
[1751186833676,11.38128425,2445.5,2445.3,1.62217253]
[1751186833876,1.53188,2445.4,2445.3,1.62217253]
[1751186834190,2.89868,2445.4,2445.3,1.62217253]
[1751186834482,31.346,2445.4,2445.3,1.62217253]
[1751186834680,6.429,2445.4,2445.3,2.43978253]
[1751186835088,6.429,2445.4,2445.3,0.81761]
[1751186836584,6.429,2445.5,2445.4,0.81758]
[1751186836777,6.429,2445.5,2445.4,4.02538]
[1751186837180,5.79545425,2445.8,2445.6,0.81751]
[1751186837386,31.348,2445.7,2445.6,0.81751]
[1751186837785,32.16548,2445.7,2445.6,0.81751]
[1751186838385,31.348,2445.7,2445.6,0.81751]
[1751186839189,32.16548,2445.7,2445.6,0.81751]
[1751186839589,0.81746,2445.8,2445.7,0.81748]
[1751186839786,6.15188425,2445.9,2445.5,0.7089]
[1751186839990,31.349,2445.8,2445.7,0.81748]
[1751186840990,4.02523,2445.9,2445.8,0.81744]
[1751186841184,35.37523,2445.9,2445.8,0.81744]
[1751186841693,34.5578,2445.9,2445.5,2.1014]